[Event "Titled Tuesday Blitz August 17 2021"]
[White "Rodchenkov, Vitaly"]
[Black "Maevsky, Nikolay"]
[WhiteFideId "4152964"]
[BlackFideId "4198220"]
[WhiteElo "2337"]
[BlackElo "2213"]
[Result "1-0"]
[Round "06"]
[TimeControl "180+1"]
[Date "2021.08.18"]
[WhiteClock "0:00:09"]
[BlackClock "0:00:03"]

1. e4 {[%clk 0:03:00]}  g6 {[%clk 0:02:59]} 2. d4 {[%clk 0:03:00]}  Bg7 {[%clk 0:02:59]} 3. Nf3 {[%clk 0:03:01]}  d6 {[%clk 0:03:00]} 4. c3 {[%clk 0:03:01]}  Nd7 {[%clk 0:02:53]} 5. Bd3 {[%clk 0:03:01]}  Ngf6 {[%clk 0:02:52]} 6. O-O {[%clk 0:03:01]}  e5 {[%clk 0:02:52]} 7. Re1 {[%clk 0:03:01]}  c6 {[%clk 0:02:52]} 8. Bg5 {[%clk 0:03:00]}  O-O {[%clk 0:02:51]} 9. Nbd2 {[%clk 0:02:59]}  Qc7 {[%clk 0:02:51]} 10. a4 {[%clk 0:02:57]}  h6 {[%clk 0:02:48]} 11. Bh4 {[%clk 0:02:57]}  Re8 {[%clk 0:02:47]} 12. dxe5 {[%clk 0:02:56]}  dxe5 {[%clk 0:02:42]} 13. Qc2 {[%clk 0:02:56]}  Nh5 {[%clk 0:02:40]} 14. Bf1 {[%clk 0:02:53]}  Nf8 {[%clk 0:02:37]} 15. Nc4 {[%clk 0:02:52]}  Bg4 {[%clk 0:02:35]} 16. Nfd2 {[%clk 0:02:52]}  Bd7 {[%clk 0:02:25]} 17. b4 {[%clk 0:02:48]}  Nf4 {[%clk 0:02:17]} 18. f3 {[%clk 0:02:46]}  h5 {[%clk 0:02:08]} 19. a5 {[%clk 0:02:44]}  Nh7 {[%clk 0:01:59]} 20. Bf2 {[%clk 0:02:42]}  Bf8 {[%clk 0:01:50]} 21. Nb3 {[%clk 0:02:41]}  Ng5 {[%clk 0:01:45]} 22. Nc5 {[%clk 0:02:35]}  Bc8 {[%clk 0:01:44]} 23. Red1 {[%clk 0:02:29]}  Nge6 {[%clk 0:01:35]} 24. Nb3 {[%clk 0:02:07]}  Ng5 {[%clk 0:01:35]} 25. h4 {[%clk 0:02:05]}  Nh7 {[%clk 0:01:34]} 26. Nc5 {[%clk 0:02:03]}  Nf6 {[%clk 0:01:27]} 27. Kh2 {[%clk 0:01:59]}  Nd7 {[%clk 0:01:27]} 28. Nb3 {[%clk 0:01:53]}  Nf6 {[%clk 0:01:27]} 29. g3 {[%clk 0:01:51]}  Ne6 {[%clk 0:01:27]} 30. Bh3 {[%clk 0:01:45]}  Ng7 {[%clk 0:01:25]} 31. Bf1 {[%clk 0:01:42]}  Ne6 {[%clk 0:01:25]} 32. Be3 {[%clk 0:01:38]}  Be7 {[%clk 0:01:21]} 33. Qf2 {[%clk 0:01:37]}  Qb8 {[%clk 0:01:17]} 34. Rd2 {[%clk 0:01:26]}  Nf8 {[%clk 0:01:15]} 35. Rad1 {[%clk 0:01:23]}  Be6 {[%clk 0:01:15]} 36. Nc5 {[%clk 0:01:18]}  Bc8 {[%clk 0:01:06]} 37. Nd6 {[%clk 0:01:14]}  Bxd6 {[%clk 0:00:56]} 38. Rxd6 {[%clk 0:01:13]}  Be6 {[%clk 0:00:55]} 39. Bg5 {[%clk 0:01:09]}  N6h7 {[%clk 0:00:54]} 40. Nxe6 {[%clk 0:01:04]}  Nxe6 {[%clk 0:00:51]} 41. Be3 {[%clk 0:01:02]}  Nhf8 {[%clk 0:00:47]} 42. Bc4 {[%clk 0:00:56]}  Qc8 {[%clk 0:00:46]} 43. Bxa7 {[%clk 0:00:51]}  Qc7 {[%clk 0:00:37]} 44. Bb6 {[%clk 0:00:50]}  Qe7 {[%clk 0:00:37]} 45. Bf1 {[%clk 0:00:41]}  Qf6 {[%clk 0:00:37]} 46. Bh3 {[%clk 0:00:39]}  Qg7 {[%clk 0:00:31]} 47. Kg2 {[%clk 0:00:38]}  g5 {[%clk 0:00:30]} 48. hxg5 {[%clk 0:00:33]}  Qxg5 {[%clk 0:00:30]} 49. Be3 {[%clk 0:00:32]}  Qg7 {[%clk 0:00:29]} 50. Kh2 {[%clk 0:00:32]}  Rac8 {[%clk 0:00:23]} 51. Bf5 {[%clk 0:00:30]}  Rc7 {[%clk 0:00:22]} 52. Bb6 {[%clk 0:00:27]}  Rce7 {[%clk 0:00:21]} 53. Be3 {[%clk 0:00:26]}  Rc7 {[%clk 0:00:21]} 54. Qg2 {[%clk 0:00:25]}  Ng5 {[%clk 0:00:20]} 55. Kg1 {[%clk 0:00:21]}  Nfe6 {[%clk 0:00:20]} 56. Kf2 {[%clk 0:00:20]}  Rcc8 {[%clk 0:00:19]} 57. Rd7 {[%clk 0:00:20]}  Rcd8 {[%clk 0:00:18]} 58. Qh2 {[%clk 0:00:20]}  Rxd7 {[%clk 0:00:17]} 59. Rxd7 {[%clk 0:00:20]}  Qh6 {[%clk 0:00:12]} 60. Qh4 {[%clk 0:00:19]}  f6 {[%clk 0:00:11]} 61. Rd6 {[%clk 0:00:18]}  Kf7 {[%clk 0:00:10]} 62. Rd7+ {[%clk 0:00:18]}  Re7 {[%clk 0:00:11]} 63. Rxe7+ {[%clk 0:00:18]}  Kxe7 {[%clk 0:00:11]} 64. f4 {[%clk 0:00:18]}  exf4 {[%clk 0:00:11]} 65. gxf4 {[%clk 0:00:19]}  Nxe4+ {[%clk 0:00:05]} 66. Bxe4 {[%clk 0:00:18]}  Qg7 {[%clk 0:00:05]} 67. Bf3 {[%clk 0:00:18]}  Kd6 {[%clk 0:00:04]} 68. Qxh5 {[%clk 0:00:18]}  f5 {[%clk 0:00:04]} 69. Qxf5 {[%clk 0:00:18]}  Qxc3 {[%clk 0:00:05]} 70. Qe5+ {[%clk 0:00:18]}  Qxe5 {[%clk 0:00:05]} 71. fxe5+ {[%clk 0:00:19]}  Kxe5 {[%clk 0:00:05]} 72. a6 {[%clk 0:00:19]}  bxa6 {[%clk 0:00:05]} 73. Bxc6 {[%clk 0:00:19]}  Kd6 {[%clk 0:00:04]} 74. Be4 {[%clk 0:00:18]}  Ke5 {[%clk 0:00:03]} 75. Bd3 {[%clk 0:00:17]}  Nc7 {[%clk 0:00:02]} 76. Bb6 {[%clk 0:00:15]}  Nd5 {[%clk 0:00:02]} 77. Bc5 {[%clk 0:00:15]}  Nxb4 {[%clk 0:00:01]} 78. Bxb4 {[%clk 0:00:15]}  Kd4 {[%clk 0:00:02]} 79. Bxa6 {[%clk 0:00:15]}  Kd5 {[%clk 0:00:02]} 80. Be2 {[%clk 0:00:15]}  Kd4 {[%clk 0:00:03]} 81. Bd2 {[%clk 0:00:16]}  Ke4 {[%clk 0:00:03]} 82. Be3 {[%clk 0:00:16]}  Kd5 {[%clk 0:00:03]} 83. Bd3 {[%clk 0:00:17]}  Kd6 {[%clk 0:00:03]} 84. Kf3 {[%clk 0:00:17]}  Kd5 {[%clk 0:00:04]} 85. Be4+ {[%clk 0:00:17]}  Kc4 {[%clk 0:00:04]} 86. Kf4 {[%clk 0:00:17]}  Kc3 {[%clk 0:00:04]} 87. Ke5 {[%clk 0:00:17]}  Kc4 {[%clk 0:00:04]} 88. Kd6 {[%clk 0:00:16]}  Kc3 {[%clk 0:00:05]} 89. Kc5 {[%clk 0:00:16]}  Kb3 {[%clk 0:00:05]} 90. Kd4 {[%clk 0:00:14]}  Kb4 {[%clk 0:00:05]} 91. Bd5 {[%clk 0:00:14]}  Kb5 {[%clk 0:00:04]} 92. Bd2 {[%clk 0:00:14]}  Kb6 {[%clk 0:00:04]} 93. Bb4 {[%clk 0:00:14]}  Kc7 {[%clk 0:00:05]} 94. Bc5 {[%clk 0:00:14]}  Kc8 {[%clk 0:00:03]} 95. Ke5 {[%clk 0:00:14]}  Kc7 {[%clk 0:00:03]} 96. Ke6 {[%clk 0:00:14]}  Kc8 {[%clk 0:00:03]} 97. Kd6 {[%clk 0:00:12]}  Kb8 {[%clk 0:00:03]} 98. Kc6 {[%clk 0:00:11]}  Ka8 {[%clk 0:00:03]} 99. Kc7# {[%clk 0:00:09]} 1-0


[Site "https://www.chess.com"]

[Event "Titled Tuesday Blitz August 17 2021"]
[White "Rodriguez Hernandez, Luis Daniel"]
[Black "Alekseenko, Kirill"]
[WhiteFideId "3506770"]
[BlackFideId "4135539"]
[WhiteElo "2133"]
[BlackElo "2580"]
[Result "0-1"]
[Round "06"]
[TimeControl "180+1"]
[Date "2021.08.17"]
[WhiteClock "0:00:11"]
[BlackClock "0:00:55"]

1. e4 {[%clk 0:03:00]}  e5 {[%clk 0:02:59]} 2. Nf3 {[%clk 0:03:01]}  Nc6 {[%clk 0:03:00]} 3. Bc4 {[%clk 0:03:01]}  Bc5 {[%clk 0:03:00]} 4. b4 {[%clk 0:03:02]}  Bxb4 {[%clk 0:02:58]} 5. c3 {[%clk 0:03:02]}  Ba5 {[%clk 0:02:57]} 6. d4 {[%clk 0:03:03]}  d6 {[%clk 0:02:55]} 7. dxe5 {[%clk 0:02:57]}  Nge7 {[%clk 0:02:41]} 8. Ng5 {[%clk 0:02:11]}  Nxe5 {[%clk 0:02:36]} 9. Nxf7 {[%clk 0:02:10]}  Nxf7 {[%clk 0:02:33]} 10. Bxf7+ {[%clk 0:02:09]}  Kxf7 {[%clk 0:02:34]} 11. Qh5+ {[%clk 0:02:10]}  Ng6 {[%clk 0:02:34]} 12. Qxa5 {[%clk 0:02:11]}  Re8 {[%clk 0:02:31]} 13. Qd5+ {[%clk 0:02:06]}  Be6 {[%clk 0:02:23]} 14. Qxb7 {[%clk 0:02:06]}  Rb8 {[%clk 0:02:15]} 15. Qxa7 {[%clk 0:02:03]}  Bc4 {[%clk 0:02:07]} 16. Nd2 {[%clk 0:02:03]}  Bd3 {[%clk 0:01:42]} 17. Qe3 {[%clk 0:02:02]}  Ba6 {[%clk 0:01:38]} 18. c4 {[%clk 0:02:01]}  Qf6 {[%clk 0:01:38]} 19. Rb1 {[%clk 0:01:54]}  Rxb1 {[%clk 0:01:38]} 20. Nxb1 {[%clk 0:01:55]}  Bxc4 {[%clk 0:01:36]} 21. Nd2 {[%clk 0:01:53]}  Ba6 {[%clk 0:01:34]} 22. Qb3+ {[%clk 0:01:40]}  Kf8 {[%clk 0:01:32]} 23. Bb2 {[%clk 0:01:37]}  Qg5 {[%clk 0:01:27]} 24. Qf3+ {[%clk 0:01:23]}  Kg8 {[%clk 0:01:24]} 25. h4 {[%clk 0:01:20]}  Qa5 {[%clk 0:01:21]} 26. Qc3 {[%clk 0:01:15]}  Qxc3 {[%clk 0:01:18]} 27. Bxc3 {[%clk 0:01:16]}  Nf4 {[%clk 0:01:19]} 28. f3 {[%clk 0:00:49]}  Nxg2+ {[%clk 0:01:15]} 29. Kf2 {[%clk 0:00:49]}  Nf4 {[%clk 0:01:16]} 30. Rb1 {[%clk 0:00:36]}  h5 {[%clk 0:01:15]} 31. Bd4 {[%clk 0:00:35]}  Rf8 {[%clk 0:01:12]} 32. Be3 {[%clk 0:00:34]}  Nd3+ {[%clk 0:01:11]} 33. Kg3 {[%clk 0:00:34]}  Ne5 {[%clk 0:01:12]} 34. Rb4 {[%clk 0:00:32]}  Be2 {[%clk 0:01:11]} 35. f4 {[%clk 0:00:25]}  Ng4 {[%clk 0:01:12]} 36. Bg1 {[%clk 0:00:25]}  Ra8 {[%clk 0:01:09]} 37. a4 {[%clk 0:00:25]}  c5 {[%clk 0:01:04]} 38. Rb6 {[%clk 0:00:24]}  c4 {[%clk 0:01:03]} 39. Rxd6 {[%clk 0:00:20]}  Rxa4 {[%clk 0:01:01]} 40. Bd4 {[%clk 0:00:14]}  Ra3+ {[%clk 0:01:01]} 41. Kg2 {[%clk 0:00:13]}  c3 {[%clk 0:01:01]} 42. Nb1 {[%clk 0:00:12]}  c2 {[%clk 0:00:58]} 43. Rd8+ {[%clk 0:00:12]}  Kh7 {[%clk 0:00:55]} 44. Nxa3 {[%clk 0:00:11]}  c1=Q {[%clk 0:00:55]} 45. Rd7 {[%clk 0:00:11]}  Qf1+ {[%clk 0:00:54]} 46. Kg3 {[%clk 0:00:11]}  Qf3# {[%clk 0:00:55]} 0-1


[Site "https://www.chess.com"]

[Event "Titled Tuesday Blitz August 17 2021"]
[White "Rozhkov, Viacheslav"]
[Black "Goryachkina, Aleksandra"]
[WhiteFideId "4181484"]
[BlackFideId "4147103"]
[WhiteElo "2324"]
[BlackElo "2441"]
[Result "0-1"]
[Round "06"]
[TimeControl "180+1"]
[Date "2021.08.17"]
[WhiteClock "0:00:33"]
[BlackClock "0:00:37"]

1. e4 {[%clk 0:03:00]}  c5 {[%clk 0:02:59]} 2. Nf3 {[%clk 0:03:00]}  e6 {[%clk 0:02:58]} 3. d4 {[%clk 0:03:01]}  cxd4 {[%clk 0:02:58]} 4. Nxd4 {[%clk 0:03:01]}  a6 {[%clk 0:02:58]} 5. Nc3 {[%clk 0:03:01]}  Qc7 {[%clk 0:02:49]} 6. g3 {[%clk 0:03:01]}  Nc6 {[%clk 0:02:45]} 7. Bg2 {[%clk 0:03:00]}  h5 {[%clk 0:02:44]} 8. O-O {[%clk 0:02:49]}  h4 {[%clk 0:02:43]} 9. Nxc6 {[%clk 0:02:49]}  bxc6 {[%clk 0:02:41]} 10. Re1 {[%clk 0:02:13]}  e5 {[%clk 0:02:25]} 11. Be3 {[%clk 0:01:52]}  d6 {[%clk 0:02:20]} 12. Na4 {[%clk 0:01:50]}  Rb8 {[%clk 0:02:18]} 13. c4 {[%clk 0:01:49]}  c5 {[%clk 0:01:56]} 14. Nc3 {[%clk 0:01:44]}  hxg3 {[%clk 0:01:31]} 15. hxg3 {[%clk 0:01:43]}  Ne7 {[%clk 0:01:30]} 16. Qd2 {[%clk 0:01:23]}  Be6 {[%clk 0:01:27]} 17. Rad1 {[%clk 0:01:18]}  Ng6 {[%clk 0:01:19]} 18. Nd5 {[%clk 0:01:04]}  Bxd5 {[%clk 0:01:19]} 19. exd5 {[%clk 0:01:04]}  Be7 {[%clk 0:01:18]} 20. Be4 {[%clk 0:01:04]}  Nf8 {[%clk 0:01:15]} 21. Kg2 {[%clk 0:01:03]}  g6 {[%clk 0:01:05]} 22. Rh1 {[%clk 0:01:03]}  Rxh1 {[%clk 0:01:04]} 23. Rxh1 {[%clk 0:01:03]}  f5 {[%clk 0:01:04]} 24. Bc2 {[%clk 0:01:03]}  Bf6 {[%clk 0:01:03]} 25. Ba4+ {[%clk 0:00:56]}  Kf7 {[%clk 0:00:59]} 26. Bg5 {[%clk 0:00:56]}  Qe7 {[%clk 0:00:50]} 27. Bxf6 {[%clk 0:00:54]}  Qxf6 {[%clk 0:00:50]} 28. Qa5 {[%clk 0:00:50]}  Rxb2 {[%clk 0:00:47]} 29. Qc7+ {[%clk 0:00:33]}  Qe7 {[%clk 0:00:46]} 30. Bd7 {[%clk 0:00:33]}  Kg7 {[%clk 0:00:37]} 0-1


[Site "https://www.chess.com"]

[Event "Titled Tuesday Blitz August 17 2021"]
[White "Shapiro, David"]
[Black "Ibrahimli, Murad"]
[WhiteFideId "24133523"]
[BlackFideId "13410229"]
[WhiteElo "2234"]
[BlackElo "2109"]
[Result "0-1"]
[Round "06"]
[TimeControl "180+1"]
[Date "2021.08.17"]
[WhiteClock "0:00:01"]
[BlackClock "0:00:12"]

1. d4 {[%clk 0:02:57]}  Nf6 {[%clk 0:02:59]} 2. Bf4 {[%clk 0:02:57]}  e6 {[%clk 0:02:55]} 3. e3 {[%clk 0:02:56]}  Bd6 {[%clk 0:02:53]} 4. Bg3 {[%clk 0:02:43]}  O-O {[%clk 0:02:52]} 5. Nc3 {[%clk 0:02:42]}  Bb4 {[%clk 0:02:47]} 6. Bd3 {[%clk 0:02:39]}  c5 {[%clk 0:02:46]} 7. Ne2 {[%clk 0:02:38]}  d5 {[%clk 0:02:42]} 8. a3 {[%clk 0:02:37]}  Bxc3+ {[%clk 0:02:28]} 9. Nxc3 {[%clk 0:02:38]}  cxd4 {[%clk 0:02:25]} 10. exd4 {[%clk 0:02:38]}  Nc6 {[%clk 0:02:25]} 11. O-O {[%clk 0:02:28]}  Ne8 {[%clk 0:02:05]} 12. Ne2 {[%clk 0:02:17]}  Nd6 {[%clk 0:02:04]} 13. c3 {[%clk 0:02:13]}  b6 {[%clk 0:01:59]} 14. Qd2 {[%clk 0:02:08]}  a5 {[%clk 0:01:56]} 15. Qf4 {[%clk 0:02:08]}  Nf5 {[%clk 0:01:55]} 16. Bxf5 {[%clk 0:02:06]}  exf5 {[%clk 0:01:55]} 17. Bh4 {[%clk 0:01:48]}  f6 {[%clk 0:01:52]} 18. Bg3 {[%clk 0:01:31]}  Ra7 {[%clk 0:01:35]} 19. h4 {[%clk 0:01:21]}  Re7 {[%clk 0:01:28]} 20. Rfe1 {[%clk 0:01:15]}  Rfe8 {[%clk 0:01:25]} 21. Qd2 {[%clk 0:01:08]}  a4 {[%clk 0:01:21]} 22. Nf4 {[%clk 0:00:55]}  Na5 {[%clk 0:01:20]} 23. Rxe7 {[%clk 0:00:53]}  Rxe7 {[%clk 0:01:21]} 24. Nd3 {[%clk 0:00:46]}  Nb3 {[%clk 0:01:18]} 25. Qd1 {[%clk 0:00:46]}  Nxa1 {[%clk 0:01:17]} 26. Qxa1 {[%clk 0:00:47]}  Ba6 {[%clk 0:01:14]} 27. Nb4 {[%clk 0:00:44]}  Bb5 {[%clk 0:01:12]} 28. Qd1 {[%clk 0:00:37]}  Qd7 {[%clk 0:01:10]} 29. Qf3 {[%clk 0:00:35]}  Bc4 {[%clk 0:01:09]} 30. Qf4 {[%clk 0:00:34]}  Re8 {[%clk 0:01:05]} 31. Nc2 {[%clk 0:00:24]}  g6 {[%clk 0:01:03]} 32. Ne3 {[%clk 0:00:24]}  b5 {[%clk 0:01:03]} 33. h5 {[%clk 0:00:18]}  g5 {[%clk 0:01:03]} 34. Qxf5 {[%clk 0:00:18]}  Qxf5 {[%clk 0:01:03]} 35. Nxf5 {[%clk 0:00:19]}  Re2 {[%clk 0:01:03]} 36. Bd6 {[%clk 0:00:15]}  Kf7 {[%clk 0:00:58]} 37. Bb4 {[%clk 0:00:10]}  Rxb2 {[%clk 0:00:57]} 38. Ne3 {[%clk 0:00:05]}  Ke6 {[%clk 0:00:56]} 39. g4 {[%clk 0:00:05]}  Bd3 {[%clk 0:00:52]} 40. Kg2 {[%clk 0:00:05]}  Be4+ {[%clk 0:00:50]} 41. Kg3 {[%clk 0:00:05]}  Rb1 {[%clk 0:00:51]} 42. Bc5 {[%clk 0:00:03]}  f5 {[%clk 0:00:34]} 43. gxf5+ {[%clk 0:00:04]}  Bxf5 {[%clk 0:00:35]} 44. Bb4 {[%clk 0:00:04]}  Be4 {[%clk 0:00:29]} 45. Kg4 {[%clk 0:00:04]}  Rg1+ {[%clk 0:00:29]} 46. Kh3 {[%clk 0:00:04]}  Kf6 {[%clk 0:00:24]} 47. Ng4+ {[%clk 0:00:03]}  Kg7 {[%clk 0:00:24]} 48. Bd6 {[%clk 0:00:03]}  Bf5 {[%clk 0:00:20]} 49. f3 {[%clk 0:00:03]}  Bxg4+ {[%clk 0:00:20]} 50. fxg4 {[%clk 0:00:04]}  Kf6 {[%clk 0:00:18]} 51. Bc5 {[%clk 0:00:03]}  Ke6 {[%clk 0:00:18]} 52. Bb4 {[%clk 0:00:03]}  Kd7 {[%clk 0:00:15]} 53. Bc5 {[%clk 0:00:03]}  Kc6 {[%clk 0:00:15]} 54. Bb4 {[%clk 0:00:03]}  Kb7 {[%clk 0:00:13]} 55. Bc5 {[%clk 0:00:03]}  b4 {[%clk 0:00:14]} 56. Bxb4 {[%clk 0:00:03]}  Kc6 {[%clk 0:00:14]} 57. Bc5 {[%clk 0:00:02]}  Kb5 {[%clk 0:00:15]} 58. Bb4 {[%clk 0:00:02]}  Kc4 {[%clk 0:00:15]} 59. h6 {[%clk 0:00:02]}  Kb3 {[%clk 0:00:14]} 60. Be7 {[%clk 0:00:01]}  Kxc3 {[%clk 0:00:12]} 61. Bxg5 {[%clk 0:00:01]}  Kxd4 {[%clk 0:00:12]} 0-1


[Site "https://www.chess.com"]

[Event "Titled Tuesday Blitz August 17 2021"]
[White "Shimelkov, Vasiliy"]
[Black "Terry, Renato"]
[WhiteFideId "13701630"]
[BlackFideId "3803457"]
[WhiteElo "2073"]
[BlackElo "2581"]
[Result "0-1"]
[Round "06"]
[TimeControl "180+1"]
[Date "2021.08.17"]
[WhiteClock "0:00:02"]
[BlackClock "0:00:07"]

1. d4 {[%clk 0:03:00]}  e6 {[%clk 0:03:00]} 2. c4 {[%clk 0:03:00]}  Bb4+ {[%clk 0:02:59]} 3. Bd2 {[%clk 0:02:59]}  Qe7 {[%clk 0:03:00]} 4. Nf3 {[%clk 0:02:59]}  Nf6 {[%clk 0:03:00]} 5. g3 {[%clk 0:02:58]}  Nc6 {[%clk 0:02:59]} 6. Bg2 {[%clk 0:02:58]}  Bxd2+ {[%clk 0:02:59]} 7. Nbxd2 {[%clk 0:02:58]}  d6 {[%clk 0:02:59]} 8. O-O {[%clk 0:02:58]}  O-O {[%clk 0:02:58]} 9. e4 {[%clk 0:02:57]}  e5 {[%clk 0:02:58]} 10. d5 {[%clk 0:02:57]}  Nb8 {[%clk 0:02:58]} 11. Ne1 {[%clk 0:02:57]}  a5 {[%clk 0:02:58]} 12. Nd3 {[%clk 0:02:56]}  Na6 {[%clk 0:02:57]} 13. b3 {[%clk 0:02:53]}  Nc5 {[%clk 0:02:56]} 14. Qe2 {[%clk 0:02:52]}  b6 {[%clk 0:02:50]} 15. a3 {[%clk 0:02:47]}  Bg4 {[%clk 0:02:44]} 16. f3 {[%clk 0:02:45]}  Bd7 {[%clk 0:02:44]} 17. f4 {[%clk 0:02:34]}  Nxd3 {[%clk 0:01:56]} 18. Qxd3 {[%clk 0:02:33]}  g6 {[%clk 0:01:53]} 19. b4 {[%clk 0:02:25]}  exf4 {[%clk 0:01:36]} 20. gxf4 {[%clk 0:02:23]}  axb4 {[%clk 0:01:30]} 21. axb4 {[%clk 0:02:20]}  Nh5 {[%clk 0:01:30]} 22. Rxa8 {[%clk 0:02:10]}  Rxa8 {[%clk 0:01:31]} 23. Qd4 {[%clk 0:02:06]}  Qh4 {[%clk 0:01:21]} 24. e5 {[%clk 0:02:03]}  Re8 {[%clk 0:01:17]} 25. Nf3 {[%clk 0:01:55]}  Qxf4 {[%clk 0:01:16]} 26. exd6 {[%clk 0:01:37]}  Qxd4+ {[%clk 0:00:58]} 27. Nxd4 {[%clk 0:01:36]}  cxd6 {[%clk 0:00:59]} 28. Nc6 {[%clk 0:01:27]}  g5 {[%clk 0:00:53]} 29. Ra1 {[%clk 0:01:20]}  Nf4 {[%clk 0:00:53]} 30. Ra7 {[%clk 0:01:17]}  Re1+ {[%clk 0:00:20]} 31. Kf2 {[%clk 0:01:10]}  Re2+ {[%clk 0:00:17]} 32. Kf3 {[%clk 0:00:54]}  Be8 {[%clk 0:00:17]} 33. Bf1 {[%clk 0:00:45]}  Rxh2 {[%clk 0:00:15]} 34. Ne7+ {[%clk 0:00:40]}  Kf8 {[%clk 0:00:09]} 35. Nf5 {[%clk 0:00:40]}  Rh1 {[%clk 0:00:09]} 36. Bg2 {[%clk 0:00:37]}  Rg1 {[%clk 0:00:08]} 37. Nxd6 {[%clk 0:00:28]}  Rxg2 {[%clk 0:00:08]} 38. Ra8 {[%clk 0:00:24]}  Re2 {[%clk 0:00:07]} 39. c5 {[%clk 0:00:23]}  bxc5 {[%clk 0:00:08]} 40. bxc5 {[%clk 0:00:23]}  Re5 {[%clk 0:00:08]} 41. c6 {[%clk 0:00:10]}  Nxd5 {[%clk 0:00:08]} 42. Rc8 {[%clk 0:00:02]}  Re6 {[%clk 0:00:07]} 43. Nxe8 {[%clk 0:00:02]}  Rxe8 {[%clk 0:00:07]} 44. Rxe8+ {[%clk 0:00:01]}  Kxe8 {[%clk 0:00:08]} 45. Ke4 {[%clk 0:00:02]}  Nc7 {[%clk 0:00:07]} 0-1


[Site "https://www.chess.com"]

[Event "Titled Tuesday Blitz August 17 2021"]
[White "Silich, Yahor"]
[Black "Kalghatgi, Nikhil"]
[WhiteFideId "13513656"]
[BlackFideId "2056496"]
[WhiteElo "2142"]
[BlackElo "1994"]
[Result "1-0"]
[Round "06"]
[TimeControl "180+1"]
[Date "2021.08.18"]
[WhiteClock "0:00:40"]
[BlackClock "0:00:53"]

1. e4 {[%clk 0:03:00]}  c6 {[%clk 0:03:00]} 2. d4 {[%clk 0:02:54]}  d5 {[%clk 0:02:59]} 3. exd5 {[%clk 0:02:55]}  cxd5 {[%clk 0:03:00]} 4. Bd3 {[%clk 0:02:56]}  Nc6 {[%clk 0:03:00]} 5. c3 {[%clk 0:02:56]}  g6 {[%clk 0:02:55]} 6. h3 {[%clk 0:02:49]}  Bg7 {[%clk 0:02:56]} 7. Nf3 {[%clk 0:02:49]}  Bf5 {[%clk 0:02:56]} 8. Bxf5 {[%clk 0:02:48]}  gxf5 {[%clk 0:02:57]} 9. O-O {[%clk 0:02:49]}  e6 {[%clk 0:02:57]} 10. Re1 {[%clk 0:02:48]}  Qc7 {[%clk 0:02:57]} 11. Na3 {[%clk 0:02:49]}  Nge7 {[%clk 0:02:58]} 12. Nc2 {[%clk 0:02:46]}  O-O-O {[%clk 0:02:57]} 13. Re2 {[%clk 0:02:46]}  h5 {[%clk 0:02:51]} 14. Nce1 {[%clk 0:02:38]}  Bh6 {[%clk 0:02:50]} 15. Nd3 {[%clk 0:02:33]}  Rdg8 {[%clk 0:02:48]} 16. Bxh6 {[%clk 0:02:22]}  Rxh6 {[%clk 0:02:47]} 17. Qd2 {[%clk 0:02:17]}  Rhg6 {[%clk 0:02:43]} 18. Nf4 {[%clk 0:02:18]}  R6g7 {[%clk 0:02:40]} 19. Nh4 {[%clk 0:02:10]}  Rg5 {[%clk 0:02:07]} 20. Rae1 {[%clk 0:01:55]}  Kb8 {[%clk 0:02:03]} 21. g3 {[%clk 0:01:35]}  Nc8 {[%clk 0:01:57]} 22. Nf3 {[%clk 0:01:30]}  R5g7 {[%clk 0:01:56]} 23. Nxh5 {[%clk 0:01:29]}  Rg6 {[%clk 0:01:56]} 24. Ne5 {[%clk 0:01:17]}  Nxe5 {[%clk 0:01:54]} 25. dxe5 {[%clk 0:01:18]}  Nb6 {[%clk 0:01:51]} 26. b3 {[%clk 0:01:10]}  Nd7 {[%clk 0:01:51]} 27. b4 {[%clk 0:01:07]}  Nb6 {[%clk 0:01:51]} 28. Nf4 {[%clk 0:01:07]}  R6g7 {[%clk 0:01:48]} 29. Kh2 {[%clk 0:01:06]}  Nc4 {[%clk 0:01:47]} 30. Qd4 {[%clk 0:01:07]}  Rh8 {[%clk 0:01:40]} 31. a4 {[%clk 0:01:06]}  Qd8 {[%clk 0:01:30]} 32. a5 {[%clk 0:00:55]}  Qg5 {[%clk 0:01:28]} 33. b5 {[%clk 0:00:52]}  Rgh7 {[%clk 0:01:28]} 34. Kg2 {[%clk 0:00:48]}  Nxa5 {[%clk 0:01:17]} 35. b6 {[%clk 0:00:46]}  a6 {[%clk 0:01:15]} 36. Qc5 {[%clk 0:00:44]}  Nc4 {[%clk 0:01:02]} 37. Qc7+ {[%clk 0:00:40]}  Ka8 {[%clk 0:01:01]} 38. Ra1 {[%clk 0:00:39]}  f6 {[%clk 0:00:53]} 39. Rxa6+ {[%clk 0:00:39]}  bxa6 {[%clk 0:00:53]} 40. b7+ {[%clk 0:00:40]} 1-0


[Site "https://www.chess.com"]